Workbook

Sheet MYP, MSS
B1: Matti Nylander | E1: 19.7.1978 Helsinki
B2: YKKÖSPESIS | E2: Runkosarja | L2: Runkosarja TOP-10 | Q2: Jatkosarjat | X2: SUOMENSARJA | AA2: Runkosarja | AH2: Runkosarja TOP-10 | AM2: Jatkosarjat
B3: Vuosi | C3: Sija | D3: Seura | E3: OTT | F3: KUN | G3: LÖI | H3: TOI | I3: KL | J3: KL-% | L3: LÖI | M3: TOI | N3: L+T | O3: KL | Q3: OTT | R3: KUN | S3: LÖI | T3: TOI | U3: KL | V3: KL-% | X3: Vuosi | Y3: Sija | Z3: Seura | AA3: OTT | AB3: KUN | AC3: LÖI | AD3: TOI | AE3: KL | AF3: KL-% | AH3: LÖI | AI3: TOI | AJ3: L+T | AK3: KL | AM3: OTT | AN3: KUN | AO3: LÖI | AP3: TOI | AQ3: KL | AR3: KL-%
X4: 1996 | Y4: 8. | Z4: PuMu
X5: 1997 | Y5: 7. | Z5: PuMu
X6: 1998 | Y6: 7. | Z6: PuMu
X7: 1999 | Y7: 6. | Z7: PuMu
X8: 2000 | Y8: 3. | Z8: PuMu
X9: 2001 | Y9: 5. | Z9: PuMu | AA9: 17 | AB9: 0 | AC9: 7 | AD9: 5 | AE9: 55 | AF9: 50.9 % | AG9: 108
X10: 2002 | Y10: 10. | Z10: PuMu | AA10: 18 | AB10: 0 | AC10: 1 | AD10: 11 | AE10: 63 | AF10: 55.3 % | AG10: 114
X11: 2003 | Y11: 5. | Z11: PuMu | AA11: 17 | AB11: 2 | AC11: 13 | AD11: 12 | AE11: 70 | AF11: 58.8 % | AG11: 119
X12: 2004 | Y12: 3. | Z12: PuMu | AA12: 16 | AB12: 1 | AC12: 13 | AD12: 13 | AE12: 71 | AF12: 65.7 % | AG12: 108 | AM12: 2 | AN12: 0 | AO12: 1 | AP12: 2 | AQ12: 9 | AR12: 47.4 % | AS12: 19
X13: 2005 | Y13: 1. | Z13: PuMu | AA13: 16 | AB13: 5 | AC13: 13 | AD13: 40 | AE13: 87 | AF13: 65.9 % | AG13: 132 | AI13: 2. | AJ13: 4. | AK13: 6. | AM13: 4 | AN13: 0 | AO13: 1 | AP13: 6 | AQ13: 16 | AR13: 47.1 % | AS13: 34
B14: 2006 | C14: 8. | D14: PuMu | E14: 22 | F14: 1 | G14: 5 | H14: 8 | I14: 52 | J14: 39.7 % | K14: 131
B15: 2007 | C15: 15. | D15: PuMu | E15: 20 | F15: 0 | G15: 1 | H15: 6 | I15: 32 | J15: 34.0 % | K15: 94
X16: 2008 | Y16: 2. | Z16: PuMu | AA16: 18 | AB16: 0 | AC16: 3 | AD16: 17 | AE16: 58 | AF16: 50.9 % | AG16: 114 | AM16: 5 | AN16: 2 | AO16: 1 | AP16: 6 | AQ16: 27 | AR16: 49.1 % | AS16: 55
X17: 2009 | Y17: 1. | Z17: PuMu | AA17: 16 | AB17: 2 | AC17: 4 | AD17: 30 | AE17: 74 | AF17: 58.3 % | AG17: 127 | AI17: 5. | AM17: 8 | AN17: 0 | AO17: 0 | AP17: 12 | AQ17: 38 | AR17: 62.3 % | AS17: 61
X18: 2010 | Y18: 1. | Z18: PuMu | AA18: 15 | AB18: 1 | AC18: 8 | AD18: 31 | AE18: 68 | AF18: 65.4 % | AG18: 104 | AI18: 5. | AM18: 7 | AN18: 0 | AO18: 4 | AP18: 3 | AQ18: 25 | AR18: 55.6 % | AS18: 45
B19: 2011 | C19: 7. | D19: PuMu | E19: 22 | F19: 2 | G19: 9 | H19: 16 | I19: 62 | J19: 47.0 % | K19: 132
B20: 2012 | C20: 10. | D20: PuMu | E20: 21 | F20: 1 | G20: 6 | H20: 4 | I20: 46 | J20: 43.8 % | K20: 105 | Q20: 4 | R20: 0 | S20: 2 | T20: 0 | U20: 12 | V20: 46.2 % | W20: 26
B21: 2013 | C21: 11. | D21: PuMu | E21: 4 | F21: 0 | G21: 0 | H21: 0 | I21: 3 | J21: 15.0 % | K21: 20
X22: 2014 | Y22: 3. | Z22: PuMu | AA22: 16 | AB22: 4 | AC22: 19 | AD22: 15 | AE22: 65 | AF22: 55.6 % | AG22: 117 | AM22: 1 | AN22: 0 | AO22: 1 | AP22: 0 | AQ22: 1 | AR22: 25.0 % | AS22: 4
X23: 2015 | Y23: 2. | Z23: PuMu | AA23: 15 | AB23: 0 | AC23: 10 | AD23: 7 | AE23: 55 | AF23: 51.4 % | AG23: 107 | AM23: 4 | AN23: 1 | AO23: 1 | AP23: 1 | AQ23: 12 | AR23: 66.7 % | AS23: 18
X24: 2016 | Y24: 1. | Z24: PuMu | AA24: 10 | AB24: 0 | AC24: 4 | AD24: 5 | AE24: 35 | AF24: 53.8 % | AG24: 65 | AM24: 2 | AN24: 0 | AO24: 0 | AP24: 1 | AQ24: 7 | AR24: 70.0 % | AS24: 10
X25: 2017 | Y25: 2. | Z25: PuMu | AA25: 1 | AB25: 0 | AC25: 0 | AD25: 0 | AE25: 0 | AF25: 0.0 % | AG25: 2
X26: 2018 | Y26: 2. | Z26: PuMu | AA26: 4 | AB26: 0 | AC26: 2 | AD26: 2 | AE26: 16 | AF26: 53.3 % | AG26: =PRODUCT(AE26/AF26) -> 30 | AM26: 1 | AN26: 0 | AO26: 0 | AP26: 0 | AQ26: 5 | AR26: 71.4 % | AS26: =PRODUCT(AQ26/AR26) -> 7.000840101
X28: 2022 | Y28: 1. | Z28: PuMu | AA28: 2 | AB28: 0 | AC28: 0 | AD28: 0 | AE28: 9 | AF28: 75.0 % | AG28: 12
B29: YHTEENSÄ | E29: =SUM(E4:E28) -> 89 | F29: =SUM(F4:F28) -> 4 | G29: =SUM(G4:G28) -> 21 | H29: =SUM(H4:H28) -> 34 | I29: =SUM(I4:I28) -> 195 | J29: =PRODUCT(I29/K29) -> 40.5 % | K29: =SUM(K4:K28) -> 482 | Q29: =SUM(Q4:Q28) -> 4 | R29: =SUM(R4:R28) -> 0 | S29: =SUM(S4:S28) -> 2 | T29: =SUM(T4:T28) -> 0 | U29: =SUM(U4:U28) -> 12 | V29: =PRODUCT(U29/W29) -> 46.2 % | W29: =SUM(W4:W28) -> 26 | X29: YHTEENSÄ | AA29: =SUM(AA4:AA28) -> 181 | AB29: =SUM(AB4:AB28) -> 15 | AC29: =SUM(AC4:AC28) -> 97 | AD29: =SUM(AD4:AD28) -> 188 | AE29: =SUM(AE4:AE28) -> 726 | AF29: =PRODUCT(AE29/AG29) -> 57.7 % | AG29: =SUM(AG4:AG28) -> 1259.001875 | AM29: =SUM(AM4:AM28) -> 34 | AN29: =SUM(AN4:AN28) -> 3 | AO29: =SUM(AO4:AO28) -> 9 | AP29: =SUM(AP4:AP28) -> 31 | AQ29: =SUM(AQ4:AQ28) -> 140 | AR29: =PRODUCT(AQ29/AS29) -> 55.3 % | AS29: =SUM(AS4:AS28) -> 253.0008401
B31: KAIKKI OTTELUT | E31: OTT | F31: KUN | G31: LÖI | H31: TOI | I31: KL | J31: KL-% | L31: ka/L | M31: ka/T | N31: ka/l+t | O31: ka/kl | R31: Seurat | T31: PuMu = Helsingin Puna-Mustat (1941), kasvattajaseura
B32: SUPERPESIS | E32: 0 | F32: 0 | G32: 0 | H32: 0 | I32: 0 | J32: 0.0 % | K32: 0 | L32: 0.00 | M32: 0.00 | N32: 0.00 | O32: 0.00
B33: YKKÖSPESIS | E33: =PRODUCT(E29+Q29) -> 93 | F33: =PRODUCT(F29+R29) -> 4 | G33: =PRODUCT(G29+S29) -> 23 | H33: =PRODUCT(H29+T29) -> 34 | I33: =PRODUCT(I29+U29) -> 207 | J33: =PRODUCT(I33/K33) -> 40.7 % | K33: =PRODUCT(K29+W29) -> 508 | L33: =PRODUCT((F33+G33)/E33) -> 0.29 | M33: =PRODUCT(H33/E33) -> 0.37 | N33: =PRODUCT((F33+G33+H33)/E33) -> 0.66 | O33: =PRODUCT(I33/E33) -> 2.23
B34: SUOMENSARJA | E34: =PRODUCT(AA29+AM29) -> 215 | F34: =PRODUCT(AB29+AN29) -> 18 | G34: =PRODUCT(AC29+AO29) -> 106 | H34: =PRODUCT(AD29+AP29) -> 219 | I34: =PRODUCT(AE29+AQ29) -> 866 | J34: =PRODUCT(I34/K34) -> 57.3 % | K34: =PRODUCT(AG29+AS29) -> 1512.002715 | L34: =PRODUCT((F34+G34)/E34) -> 0.58 | M34: =PRODUCT(H34/E34) -> 1.02 | N34: =PRODUCT((F34+G34+H34)/E34) -> 1.60 | O34: =PRODUCT(I34/E34) -> 4.03
B35: YHTEENSÄ | E35: =SUM(E32:E34) -> 308 | F35: =SUM(F32:F34) -> 22 | G35: 129 | H35: 253 | I35: 1073 | J35: =PRODUCT(I35/K35) -> 53.1 % | K35: =SUM(K32:K34) -> 2020.002715 | L35: =PRODUCT((F35+G35)/E35) -> 0.49 | M35: =PRODUCT(H35/E35) -> 0.82 | N35: =PRODUCT((F35+G35+H35)/E35) -> 1.31 | O35: =PRODUCT(I35/E35) -> 3.48
